fUSD/lending_fUSD_20240617
["ID","MTS","AMOUNT","RATE_DAILY","PERIOD"]
[329759051,1718652639243,-500.0,0.00021917,2]
[329759052,1718652639254,-500.0,0.00021917,2]
[329759053,1718652639265,-172.56018318,0.00021917,2]
[329759054,1718652639275,-500.0,0.00021917,2]
[329759055,1718652639285,-500.0,0.00021917,2]
[329759056,1718652639295,-500.0,0.00021917,2]
[329759057,1718652639305,-500.0,0.00021917,2]
[329759058,1718652639315,-500.0,0.00021917,2]
[329759059,1718652639325,-500.0,0.00021917,2]
[329759060,1718652639335,-338.86135948,0.00021917,2]
[329759061,1718652639345,-500.0,0.00021917,2]
[329759062,1718652639355,-500.0,0.00021917,2]
[329759063,1718652639366,-500.0,0.00021917,2]
[329759064,1718652639376,-500.0,0.00021917,2]
[329759065,1718652639386,-500.0,0.00021917,2]
[329759066,1718652639395,-500.0,0.00021917,2]
[329759067,1718652639405,-500.0,0.00021917,2]
[329759068,1718652639415,-500.0,0.00021917,2]
[329759069,1718652639425,-500.0,0.00021917,2]
[329759070,1718652639435,-500.0,0.00021917,2]
[329759071,1718652639444,-500.0,0.00021917,2]
[329759072,1718652639454,-500.0,0.00021917,2]
[329759073,1718652639465,-500.0,0.00021917,2]
[329759074,1718652639476,-1238.11,0.00021917,2]
[329759075,1718652639485,-677.81,0.00021917,2]
[329759076,1718652639495,-500.0,0.00021917,2]
[329759077,1718652639505,-912.04,0.00021917,2]
[329759078,1718652639515,-380.46943362,0.00021917,2]
[329759079,1718652639526,-608.44,0.00021917,2]
[329759080,1718652639536,-633.76,0.00021917,2]
[329759081,1718652639546,-500.0,0.00021917,2]
[329759082,1718652639556,-1391.94,0.00021917,2]
[329759083,1718652639566,-500.0,0.00021917,2]
[329759084,1718652639576,-500.0,0.00021917,2]
[329759085,1718652639586,-500.0,0.00021917,2]
[329759086,1718652639597,-172.65809,0.00021917,2]
[329759087,1718652639607,-500.0,0.00021917,2]
[329759088,1718652639616,-500.0,0.00021917,2]
[329759089,1718652639626,-500.0,0.00021917,2]
[329759090,1718652639636,-500.0,0.00021917,2]
[329759091,1718652639647,-2403.0,0.00021917,2]
[329759092,1718652639657,-500.0,0.00021917,2]
[329759093,1718652639672,-500.0,0.00021917,2]
[329759095,1718652639682,-500.0,0.00021917,2]
[329759096,1718652639692,-551.82,0.00021917,2]
[329759097,1718652639702,-500.0,0.00021917,2]
[329759098,1718652639713,-500.0,0.00021917,2]
[329759099,1718652639725,-500.0,0.00021917,2]
[329759100,1718652639735,-500.0,0.00021917,2]
[329759101,1718652639745,-500.0,0.00021917,2]
[329759102,1718652639755,-1744.55,0.00021917,2]
[329759103,1718652639765,-500.0,0.00021917,2]
[329759104,1718652639775,-500.0,0.00021917,2]
[329759105,1718652639785,-500.0,0.00021917,2]
[329759106,1718652639795,-500.0,0.00021917,2]
[329759107,1718652639805,-500.0,0.00021917,2]
[329759108,1718652639815,-500.0,0.00021917,2]
[329759109,1718652639825,-661.66,0.00021917,2]
[329759110,1718652639835,-178.12534261,0.00021917,2]
[329759111,1718652639846,-1411.97,0.00021917,2]
[329759112,1718652639857,-558.83,0.00021917,2]
[329759113,1718652639867,-1474.21,0.00021917,2]
[329759114,1718652639878,-500.0,0.00021917,2]
[329759115,1718652639888,-500.0,0.00021917,2]
[329759116,1718652639899,-512.69821923,0.00021917,2]
[329759117,1718652639909,-500.0,0.00021917,2]
[329759118,1718652639920,-633.62,0.00021917,2]
[329759119,1718652639931,-1389.85,0.00021917,2]
[329759120,1718652639941,-500.0,0.00021917,2]
[329759122,1718652639952,-683.61,0.00021917,2]
[329759124,1718652639963,-500.0,0.00021917,2]
[329759126,1718652639975,-500.0,0.00021917,2]
[329759128,1718652639985,-500.0,0.00021917,2]
[329759129,1718652639995,-500.0,0.00021917,2]
[329759130,1718652640005,-500.0,0.00021917,2]
[329759131,1718652640015,-500.0,0.00021917,2]
[329759132,1718652640026,-500.0,0.00021917,2]
[329759133,1718652640037,-500.0,0.00021917,2]
[329759134,1718652640047,-500.0,0.00021917,2]
[329759135,1718652640057,-500.0,0.00021917,2]
[329759136,1718652640067,-500.0,0.00021917,2]
[329759137,1718652640078,-864.43,0.00021917,2]
[329759138,1718652640089,-153.01038089,0.00021917,2]
[329759139,1718652640099,-500.0,0.00021917,2]
[329759140,1718652640110,-500.0,0.00021917,2]
[329759141,1718652640120,-500.0,0.00021917,2]
[329759142,1718652640130,-1309.85,0.00021917,2]
[329759143,1718652640142,-2192.86,0.00021917,2]
[329759144,1718652640153,-572.94,0.00021917,2]
[329759145,1718652640163,-1194.77,0.00021917,2]
[329759146,1718652640173,-507.97,0.00021917,2]
[329759147,1718652640185,-500.0,0.00021917,2]
[329759148,1718652640195,-500.0,0.00021917,2]
[329759149,1718652640205,-500.0,0.00021917,2]
[329759150,1718652640214,-500.0,0.00021917,2]
[329759151,1718652640226,-500.0,0.00021917,2]
[329759152,1718652640236,-898.52,0.00021917,2]
[329759153,1718652640247,-500.0,0.00021917,2]
[329759154,1718652640257,-500.0,0.00021917,2]
[329759155,1718652640266,-500.0,0.00021917,2]
[329759156,1718652640276,-748.88,0.00021917,2]
[329759157,1718652640286,-500.0,0.00021917,2]
[329759158,1718652640296,-500.0,0.00021917,2]
[329759159,1718652640306,-525.93,0.00021917,2]
[329759160,1718652640317,-600.35,0.00021917,2]
[329759161,1718652640327,-500.0,0.00021917,2]
[329759162,1718652640337,-2318.43,0.00021917,2]
[329759163,1718652640347,-500.0,0.00021917,2]
[329759164,1718652640356,-514.34,0.00021917,2]
[329759165,1718652640366,-500.0,0.00021917,2]
[329759166,1718652640376,-919.48,0.00021917,2]
[329759167,1718652640387,-500.0,0.00021917,2]
[329759168,1718652640396,-640.28157227,0.00021917,2]
[329759169,1718652640406,-500.0,0.00021917,2]
[329759170,1718652640416,-962.69,0.00021917,2]
[329759171,1718652640426,-500.0,0.00021917,2]
[329759172,1718652640436,-744.09,0.00021917,2]
[329759173,1718652640447,-508.25850647,0.00021917,2]
[329759174,1718652640457,-500.0,0.00021917,2]
[329759175,1718652640468,-500.0,0.00021917,2]
[329759176,1718652640478,-500.0,0.00021917,2]
[329759177,1718652640488,-208.5436482,0.00021917,2]
[329759178,1718652640498,-500.0,0.00021917,2]
[329759179,1718652640509,-375.06190718,0.00021917,2]
[329759180,1718652640519,-2588.71,0.00021917,2]
[329759181,1718652640529,-500.0,0.00021917,2]
[329759182,1718652640539,-784.94,0.00021917,2]
[329759183,1718652640550,-1198.1,0.00021917,2]
[329759184,1718652640559,-500.0,0.00021917,2]
[329759185,1718652640570,-954.06,0.00021917,2]
[329759186,1718652640580,-500.0,0.00021917,2]
[329759187,1718652640590,-500.0,0.00021917,2]
[329759188,1718652640601,-500.0,0.00021917,2]
[329759189,1718652640612,-307.57299926,0.00021917,2]
[329759190,1718652640622,-500.0,0.00021917,2]
[329759191,1718652640632,-2057.92,0.00021917,2]
[329759192,1718652640643,-894.51,0.00021917,2]
[329759193,1718652640654,-500.0,0.00021917,2]
[329759194,1718652640664,-500.0,0.00021917,2]
[329759195,1718652640674,-500.0,0.00021917,2]
[329759196,1718652640684,-736.46,0.00021917,2]
[329759197,1718652640694,-1175.65,0.00021917,2]
[329759198,1718652640704,-540.98518026,0.00021917,2]
[329759199,1718652640714,-500.0,0.00021917,2]
[329759200,1718652640726,-500.0,0.00021917,2]
[329759201,1718652640737,-828.28,0.00021917,2]
[329759202,1718652640747,-500.0,0.00021917,2]
[329759203,1718652640757,-500.0,0.00021917,2]
[329759204,1718652640767,-500.0,0.00021917,2]
[329759205,1718652640777,-2076.67,0.00021917,2]
[329759206,1718652640787,-547.56725304,0.00021917,2]
[329759207,1718652640797,-500.0,0.00021917,2]
[329759208,1718652640807,-592.46,0.00021917,2]
[329759209,1718652640819,-626.37,0.00021917,2]
[329759210,1718652640829,-500.0,0.00021917,2]
[329759211,1718652640840,-500.0,0.00021917,2]
[329759212,1718652640850,-1901.91,0.00021917,2]
[329759213,1718652640860,-881.58,0.00021917,2]
[329759214,1718652640870,-500.0,0.00021917,2]
[329759215,1718652640880,-1213.76,0.00021917,2]
[329759216,1718652640890,-650.67,0.00021917,2]
[329759217,1718652640900,-561.88103651,0.00021917,2]
[329759218,1718652640911,-1299.99,0.00021917,2]
[329759219,1718652640920,-500.0,0.00021917,2]
[329759220,1718652640930,-500.0,0.00021917,2]
[329759221,1718652640940,-500.0,0.00021917,2]
[329759222,1718652640949,-1256.19,0.00021917,2]
[329759223,1718652640959,-500.0,0.00021917,2]
[329759224,1718652640971,-500.0,0.00021917,2]
[329759225,1718652640980,-1910.45,0.00021917,2]
[329759226,1718652640991,-500.0,0.00021917,2]
[329759227,1718652641000,-500.0,0.00021917,2]
[329759228,1718652641010,-500.0,0.00021917,2]
[329759229,1718652641020,-853.59,0.00021917,2]
[329759230,1718652641030,-656.88,0.00021917,2]
[329759231,1718652641039,-642.56,0.00021917,2]
[329759232,1718652641049,-500.0,0.00021917,2]
[329759234,1718652641059,-500.0,0.00021917,2]
[329759236,1718652641069,-1632.77,0.00021917,2]
[329759238,1718652641079,-1186.25,0.00021917,2]
[329759240,1718652641089,-500.0,0.00021917,2]
[329759242,1718652641099,-153.95633801,0.00021917,2]
[329759244,1718652641109,-500.0,0.00021917,2]
[329759246,1718652641119,-843.7,0.00021917,2]
[329759248,1718652641129,-1194.69,0.00021917,2]
[329759249,1718652641142,-1037.34,0.00021917,2]
[329759252,1718652641153,-500.0,0.00021917,2]
[329759254,1718652641163,-500.0,0.00021917,2]
[329759256,1718652641172,-500.0,0.00021917,2]
[329759258,1718652641183,-500.0,0.00021917,2]
[329759260,1718652641192,-972.75,0.00021917,2]
[329759261,1718652641202,-500.0,0.00021917,2]
[329759262,1718652641212,-508.37,0.00021917,2]
[329759263,1718652641226,-500.0,0.00021917,2]
[329759264,1718652641236,-500.0,0.00021917,2]
[329759265,1718652641246,-609.27,0.00021917,2]
[329759266,1718652641255,-500.0,0.00021917,2]
[329759267,1718652641265,-1410.26,0.00021917,2]
[329759268,1718652641275,-622.09,0.00021917,2]
[329759269,1718652641285,-500.0,0.00021917,2]
[329759270,1718652641294,-1623.62,0.00021917,2]
[329759271,1718652641304,-500.0,0.00021917,2]
[329759272,1718652641315,-500.0,0.00021917,2]
[329759273,1718652641324,-997.55,0.00021917,2]
[329759274,1718652641335,-761.81,0.00021917,2]
[329759275,1718652641344,-500.0,0.00021917,2]
[329759276,1718652641353,-1092.46,0.00021917,2]
[329759277,1718652641364,-500.0,0.00021917,2]
[329759278,1718652641374,-500.0,0.00021917,2]
[329759279,1718652641384,-500.0,0.00021917,2]
[329759280,1718652641394,-500.0,0.00021917,2]
[329759281,1718652641404,-500.0,0.00021917,2]
[329759282,1718652641414,-500.0,0.00021917,2]
[329759283,1718652641423,-523.83758268,0.00021917,2]
[329759284,1718652641433,-500.0,0.00021917,2]
[329759285,1718652641443,-500.0,0.00021917,2]
[329759286,1718652641453,-500.0,0.00021917,2]
[329759287,1718652641463,-500.0,0.00021917,2]
[329759288,1718652641475,-529.89105951,0.00021917,2]
[329759289,1718652641485,-500.0,0.00021917,2]
[329759290,1718652641494,-472.22709652,0.00021917,2]
[329759291,1718652641504,-560.57,0.00021917,2]
[329759292,1718652641514,-500.0,0.00021917,2]
[329759293,1718652641524,-1269.23,0.00021917,2]
[329759294,1718652641533,-500.0,0.00021917,2]
[329759295,1718652641543,-520.6,0.00021917,2]
[329759296,1718652641552,-912.1,0.00021917,2]
[329759297,1718652641561,-500.0,0.00021917,2]
[329759298,1718652641571,-500.0,0.00021917,2]
[329759299,1718652641581,-500.0,0.00021917,2]
[329759300,1718652641591,-714.96,0.00021917,2]
[329759301,1718652641601,-1057.65,0.00021917,2]
[329759302,1718652641611,-500.0,0.00021917,2]
[329759303,1718652641621,-1062.38,0.00021917,2]
[329759304,1718652641630,-500.0,0.00021917,2]
[329759305,1718652641639,-605.66,0.00021917,2]
[329759306,1718652641649,-1224.71,0.00021917,2]
[329759307,1718652641659,-601.76,0.00021917,2]
[329759308,1718652641668,-2378.28,0.00021917,2]
[329759309,1718652641678,-500.0,0.00021917,2]
[329759310,1718652641688,-619.44,0.00021917,2]
[329759311,1718652641699,-500.0,0.00021917,2]
[329759312,1718652641708,-500.0,0.00021917,2]
[329759313,1718652641720,-2636.87,0.00021917,2]
[329759314,1718652641730,-522.16,0.00021917,2]
[329759315,1718652641740,-602.02,0.00021917,2]
[329759316,1718652641962,-500.0,0.00021917,2]
[329759317,1718652641974,-909.14,0.00021917,2]
[329759318,1718652641984,-775.14,0.00021917,2]
[329759319,1718652641994,-500.0,0.00021917,2]
[329759320,1718652642004,-150.73231313,0.00021917,2]
[329759321,1718652642014,-500.0,0.00021917,2]
[329759322,1718652642025,-500.0,0.00021917,2]
[329759323,1718652642035,-1026.03,0.00021917,2]
[329759324,1718652642047,-500.0,0.00021917,2]
[329759325,1718652642056,-500.0,0.00021917,2]
[329759326,1718652642066,-500.0,0.00021917,2]
[329759327,1718652642076,-500.0,0.00021917,2]
[329759328,1718652642086,-763.12,0.00021917,2]
[329759329,1718652642096,-500.0,0.00021917,2]
[329759330,1718652642106,-500.0,0.00021917,2]
[329759331,1718652642115,-644.45,0.00021917,2]
[329759332,1718652642125,-630.9,0.00021917,2]
[329759333,1718652642136,-500.0,0.00021917,2]
[329759334,1718652642149,-500.0,0.00021917,2]
[329759335,1718652642159,-1386.86,0.00021917,2]
[329759336,1718652642168,-500.0,0.00021917,2]
[329759337,1718652642179,-554.33,0.00021917,2]
[329759338,1718652642189,-514.22,0.00021917,2]
[329759339,1718652642198,-500.0,0.00021917,2]
[329759340,1718652642208,-534.93,0.00021917,2]
[329759341,1718652642220,-786.15,0.00021917,2]
[329759343,1718652642231,-500.0,0.00021917,2]
[329759345,1718652642241,-1983.24,0.00021917,2]
[329759347,1718652642251,-500.0,0.00021917,2]
[329759348,1718652642260,-500.0,0.00021917,2]
[329759350,1718652642270,-500.0,0.00021917,2]
[329759351,1718652642280,-1097.58,0.00021917,2]
[329759352,1718652642290,-1147.04,0.00021917,2]
[329759353,1718652642300,-500.0,0.00021917,2]
[329759354,1718652642309,-554.42,0.00021917,2]
[329759355,1718652642320,-500.0,0.00021917,2]
[329759356,1718652642330,-500.0,0.00021917,2]
[329759357,1718652642339,-561.24,0.00021917,2]
[329759358,1718652642350,-577.78,0.00021917,2]
[329759360,1718652642359,-1143.27,0.00021917,2]
[329759362,1718652642370,-910.56,0.00021917,2]
[329759363,1718652642380,-770.4,0.00021917,2]
[329759364,1718652642390,-500.0,0.00021917,2]
[329759365,1718652642399,-603.38,0.00021917,2]
[329759366,1718652642409,-500.0,0.00021917,2]
[329759367,1718652642419,-696.12,0.00021917,2]
[329759368,1718652642429,-778.09,0.00021917,2]
[329759369,1718652642438,-1915.37,0.00021917,2]
[329759370,1718652642448,-930.78,0.00021917,2]
[329759371,1718652642457,-621.18,0.00021917,2]
[329759372,1718652642467,-1190.12,0.00021917,2]
[329759373,1718652642478,-500.0,0.00021917,2]
[329759374,1718652642487,-1732.48,0.00021917,2]
[329759375,1718652642497,-2133.93,0.00021917,2]
[329759376,1718652642507,-839.74,0.00021917,2]
[329759377,1718652642517,-500.0,0.00021917,2]
[329759378,1718652642527,-626.52,0.00021917,2]
[329759379,1718652642538,-500.0,0.00021917,2]
[329759380,1718652642548,-840.91,0.00021917,2]
[329759381,1718652642558,-1247.93,0.00021917,2]
[329759382,1718652642568,-793.24,0.00021917,2]
[329759383,1718652642578,-500.0,0.00021917,2]
[329759384,1718652642587,-500.0,0.00021917,2]
[329759385,1718652642598,-500.0,0.00021917,2]
[329759386,1718652642608,-500.0,0.00021917,2]
[329759387,1718652642618,-1539.7,0.00021917,2]
[329759388,1718652642627,-906.63,0.00021917,2]
[329759389,1718652642637,-643.55,0.00021917,2]
[329759390,1718652642647,-613.65,0.00021917,2]
[329759391,1718652642657,-500.0,0.00021917,2]
[329759392,1718652642667,-500.0,0.00021917,2]
[329759393,1718652642677,-1225.58,0.00021917,2]
[329759394,1718652642686,-500.0,0.00021917,2]
[329759395,1718652642696,-500.0,0.00021917,2]
[329759396,1718652642706,-500.0,0.00021917,2]
[329759397,1718652642715,-343.60416235,0.00021917,2]
[329759398,1718652642727,-500.0,0.00021917,2]
[329759399,1718652642736,-500.0,0.00021917,2]
[329759400,1718652642745,-500.0,0.00021917,2]
[329759401,1718652642755,-500.0,0.00021917,2]
[329759402,1718652642765,-500.0,0.00021917,2]
[329759403,1718652642776,-500.0,0.00021917,2]
[329759404,1718652642786,-1242.09,0.00021917,2]
[329759405,1718652642797,-846.3,0.00021917,2]
[329759406,1718652642808,-500.0,0.00021917,2]
[329759407,1718652642820,-500.0,0.00021917,2]
[329759408,1718652642831,-500.0,0.00021917,2]
[329759409,1718652642842,-595.99,0.00021917,2]
[329759410,1718652642853,-2097.06,0.00021917,2]
[329759411,1718652642865,-292.22780011,0.00021917,2]
[329759412,1718652642877,-509.54,0.00021917,2]
[329759413,1718652642888,-500.0,0.00021917,2]
[329759414,1718652642900,-500.0,0.00021917,2]
[329759415,1718652642911,-500.0,0.00021917,2]
[329759416,1718652642922,-500.0,0.00021917,2]
[329759417,1718652642933,-500.0,0.00021917,2]
[329759418,1718652642944,-500.0,0.00021917,2]
[329759419,1718652642955,-500.0,0.00021917,2]
[329759420,1718652642965,-512.83,0.00021917,2]
[329759421,1718652642987,-728.76,0.00021917,2]
[329759422,1718652642998,-500.0,0.00021917,2]
[329759423,1718652643009,-500.0,0.00021917,2]
[329759424,1718652643020,-1509.67,0.00021917,2]
[329759425,1718652643031,-586.02,0.00021917,2]
[329759426,1718652643042,-500.0,0.00021917,2]
[329759427,1718652643053,-644.85,0.00021917,2]
[329759428,1718652643064,-500.0,0.00021917,2]
[329759429,1718652643075,-746.52,0.00021917,2]
[329759430,1718652643084,-757.33,0.00021917,2]
[329759431,1718652643093,-500.0,0.00021917,2]
[329759432,1718652643103,-788.83,0.00021917,2]
[329759433,1718652643112,-500.0,0.00021917,2]
[329759434,1718652643123,-542.26767245,0.00021917,2]
[329759435,1718652643132,-1979.61,0.00021917,2]
[329759436,1718652643143,-726.23,0.00021917,2]
[329759437,1718652643158,-842.77,0.00021917,2]
[329759438,1718652643168,-500.0,0.00021917,2]
[329759439,1718652643179,-500.0,0.00021917,2]
[329759440,1718652643189,-500.0,0.00021917,2]
[329759441,1718652643200,-1240.83,0.00021917,2]
[329759442,1718652643209,-804.99,0.00021917,2]
[329759443,1718652643226,-976.42,0.00021917,2]
[329759444,1718652643236,-558.76544963,0.00021917,2]
[329759445,1718652643247,-500.0,0.00021917,2]
[329759446,1718652643257,-1124.22,0.00021917,2]
[329759447,1718652643268,-632.88,0.00021917,2]
[329759448,1718652643280,-484.37217405,0.00021917,2]
[329759449,1718652643290,-500.0,0.00021917,2]
[329759450,1718652643300,-500.0,0.00021917,2]
[329759451,1718652643310,-500.0,0.00021917,2]
[329759452,1718652643320,-529.8,0.00021917,2]
[329759453,1718652643331,-778.18,0.00021917,2]
[329759454,1718652643341,-1518.29,0.00021917,2]
[329759455,1718652643351,-1175.8,0.00021917,2]
[329759456,1718652643361,-228.27425058,0.00021917,2]
[329759457,1718652643371,-1596.05,0.00021917,2]
[329759458,1718652643381,-500.0,0.00021917,2]
[329759459,1718652643391,-500.0,0.00021917,2]
[329759460,1718652643401,-700.12,0.00021917,2]
[329759461,1718652643411,-611.11,0.00021917,2]
[329759462,1718652643420,-500.0,0.00021917,2]
[329759463,1718652643430,-702.29,0.00021917,2]
[329759464,1718652643441,-635.74,0.00021917,2]
[329759465,1718652643451,-1944.19,0.00021917,2]
[329759466,1718652643460,-2176.46,0.00021917,2]
[329759467,1718652643474,-686.57,0.00021917,2]
[329759468,1718652643484,-500.0,0.00021917,2]
[329759469,1718652643494,-720.14,0.00021917,2]
[329759470,1718652643504,-500.0,0.00021917,2]
[329759471,1718652643514,-797.35,0.00021917,2]
[329759472,1718652643523,-1218.7,0.00021917,2]
[329759473,1718652643533,-500.0,0.00021917,2]
[329759474,1718652643543,-500.0,0.00021917,2]
[329759475,1718652643553,-500.0,0.00021917,2]
[329759476,1718652643563,-500.0,0.00021917,2]
[329759477,1718652643572,-500.0,0.00021917,2]
[329759478,1718652643583,-585.09,0.00021917,2]
[329759479,1718652643592,-500.0,0.00021917,2]
[329759480,1718652643602,-500.0,0.00021917,2]
[329759481,1718652643611,-500.0,0.00021917,2]
[329759482,1718652643621,-351.29648336,0.00021917,2]
[329759483,1718652643632,-606.1809116,0.00021917,2]
[329759484,1718652643641,-500.0,0.00021917,2]
[329759485,1718652643651,-500.0,0.00021917,2]
[329759486,1718652643661,-500.0,0.00021917,2]
[329759487,1718652643671,-500.0,0.00021917,2]
[329759488,1718652643680,-500.0,0.00021917,2]
[329759489,1718652643690,-504.77,0.00021917,2]
[329759490,1718652643700,-500.0,0.00021917,2]
[329759491,1718652643709,-500.0,0.00021917,2]
[329759492,1718652643721,-1895.22,0.00021917,2]
[329759493,1718652643731,-576.77,0.00021917,2]
[329759494,1718652643741,-744.23,0.00021917,2]
[329759495,1718652643750,-500.0,0.00021917,2]
[329759496,1718652643759,-414.1708154,0.00021917,2]
[329759497,1718652643768,-1195.23,0.00021917,2]
[329759498,1718652643777,-500.0,0.00021917,2]
[329759499,1718652643787,-1768.27781368,0.00021917,2]
[329759501,1718652644593,-725.49218632,0.00021917,2]
[329759502,1718652644603,-500.0,0.00021917,2]
[329759503,1718652644613,-500.0,0.00021917,2]
[329759504,1718652644623,-500.0,0.00021917,2]
[329759505,1718652644632,-1394.33,0.00021917,2]
[329759506,1718652644641,-660.73,0.00021917,2]
[329759507,1718652644651,-779.18,0.00021917,2]
[329759508,1718652644660,-500.0,0.00021917,2]
[329759509,1718652644670,-500.0,0.00021917,2]
[329759510,1718652644680,-2496.73,0.00021917,2]
[329759511,1718652644689,-841.02,0.00021917,2]
[329759512,1718652644699,-1691.29,0.00021917,2]
[329759513,1718652644709,-500.0,0.00021917,2]
[329759514,1718652644718,-500.0,0.00021917,2]
[329759515,1718652644730,-500.0,0.00021917,2]
[329759516,1718652644739,-962.56,0.00021917,2]
[329759517,1718652644749,-984.47,0.00021917,2]
[329759518,1718652644758,-500.0,0.00021917,2]
[329759519,1718652644770,-500.0,0.00021917,2]
[329759520,1718652644780,-8006.12,0.00021917,2]
[329759521,1718652644790,-500.0,0.00021917,2]
[329759522,1718652644800,-996.59,0.00021917,2]
[329759523,1718652644811,-500.0,0.00021917,2]
[329759524,1718652644821,-647.06,0.00021917,2]
[329759525,1718652644831,-500.0,0.00021917,2]
[329759526,1718652644842,-500.0,0.00021917,2]
[329759527,1718652644851,-500.0,0.00021917,2]
[329759528,1718652644861,-845.41,0.00021917,2]
[329759529,1718652644871,-759.12,0.00021917,2]
[329759530,1718652644880,-1274.75,0.00021917,2]
[329759531,1718652644890,-515.11428137,0.00021917,2]
[329759532,1718652644900,-1612.71,0.00021917,2]
[329759533,1718652644911,-500.0,0.00021917,2]
[329759534,1718652644922,-500.0,0.00021917,2]
[329759535,1718652644932,-516.39,0.00021917,2]
[329759536,1718652644943,-994.46,0.00021917,2]
[329759537,1718652644953,-794.97,0.00021917,2]
[329759538,1718652644964,-445.74604905,0.00021917,2]
[329759539,1718652644976,-690.88,0.00021917,2]
[329759540,1718652644987,-18758.5,0.00021917,2]
[329759541,1718652644997,-500.0,0.00021917,2]
[329759542,1718652645008,-500.0,0.00021917,2]
[329759543,1718652645018,-808.05,0.00021917,2]
[329759544,1718652645028,-500.0,0.00021917,2]
[329759545,1718652645039,-531.56102786,0.00021917,2]
[329759546,1718652645049,-500.0,0.00021917,2]
[329759547,1718652645059,-602.4,0.00021917,2]
[329759548,1718652645068,-8967.32,0.00021917,2]
[329759549,1718652645080,-2088.95,0.00021917,2]
[329759550,1718652645090,-466.39852342,0.00021917,2]
[329759551,1718652645100,-576.96941233,0.00021917,2]
[329759552,1718652645109,-500.0,0.00021917,2]
[329759553,1718652645119,-500.0,0.00021917,2]
[329759554,1718652645130,-770.66,0.00021917,2]
[329759555,1718652645141,-5212.99,0.00021917,2]
[329759556,1718652645156,-500.0,0.00021917,2]
[329759557,1718652645166,-1582.6,0.00021917,2]
[329759558,1718652645176,-631.75613005,0.00021917,2]
[329759559,1718652645187,-500.0,0.00021917,2]
[329759560,1718652645198,-8919.79,0.00021917,2]
[329759561,1718652645208,-526.54635963,0.00021917,2]
[329759562,1718652645218,-514.47156574,0.00021917,2]
[329759563,1718652645232,-500.0,0.00021917,2]
[329759564,1718652645243,-999.13,0.00021917,2]
[329759565,1718652645253,-500.0,0.00021917,2]
[329759566,1718652645262,-500.0,0.00021917,2]
[329759567,1718652645273,-548.78,0.00021917,2]
[329759568,1718652645283,-500.0,0.00021917,2]
[329759569,1718652645292,-1683.88,0.00021917,2]
[329759570,1718652645302,-500.0,0.00021917,2]
[329759571,1718652645312,-500.0,0.00021917,2]
[329759573,1718652645323,-500.0,0.00021917,2]
[329759574,1718652645333,-6483.32,0.00021917,2]
[329759575,1718652645343,-601.17,0.00021917,2]
[329759576,1718652645353,-2464.23,0.00021917,2]
[329759577,1718652645364,-1042.4,0.00021917,2]